bitfinex/quotes_SOLUSD_20250902
["timestamp","ask_amount","ask_price","bid_price","bid_amount"]
[1756824746910,39.82,204.14,204.13,0.68]
[1756824747219,39.82,204.14,204.13,12.87386218]
[1756824747600,39.82,204.14,204.12,12.19386218]
[1756824747798,39.82,204.14,204.12,12.87386218]
[1756824748000,39.82,204.14,204.12,0.68]
[1756824748201,39.82,204.14,204.1,12.19386218]
[1756824748404,39.82,204.14,204.07,0.71]
[1756824748604,4.89883897,204.13,204.07,0.71]
[1756824748806,4.89883897,204.13,204.08,12.19386218]
[1756824749008,39.82,204.14,204.09,12.87386218]
[1756824749212,44.71863953,204.14,204.1,12.87386218]
[1756824749409,39.82,204.14,204.11,12.87386218]
[1756824750319,44.71863156,204.14,204.11,12.87386218]
[1756824750527,44.71863156,204.14,204.1,12.19386218]
[1756824750828,39.82,204.14,204.11,12.19386218]
[1756824751029,39.82,204.14,204.11,12.87386218]
[1756824751231,39.82,204.14,204.13,12.19386218]
[1756824751618,0.06,204.16,204.13,12.87386218]
[1756824751822,0.06,204.16,204.15,12.19386218]
[1756824752124,39.88,204.16,204.15,12.19386218]
[1756824752522,39.88,204.16,204.12,0.68]
[1756824753031,39.88,204.16,204.13,12.87386218]
[1756824753204,39.88,204.16,204.14,12.19386218]
[1756824753406,39.88,204.16,204.15,12.19386218]
[1756824753600,39.88,204.16,204.11,0.68]
[1756824753805,44.77818538,204.16,204.13,12.19386218]
[1756824754904,0.7,204.15,204.1,12.19386218]
[1756824755108,56.97204756,204.16,204.1,12.87386218]
[1756824755420,56.97204756,204.16,204.1,12.19386218]
[1756824755732,12.89386218,204.15,204.09,12.19386218]
[1756824755933,0.7,204.15,204.11,12.19386218]
[1756824756229,0.06,204.16,204.11,12.19386218]
[1756824756396,0.06,204.16,204.14,12.19386218]
[1756824756600,39.82,204.15,204.12,0.68]
[1756824756823,39.82,204.15,204.13,0.68]
[1756824757024,39.82,204.15,204.14,12.87386218]
[1756824757220,39.82,204.15,204.14,12.19386218]
[1756824757630,0.06,204.16,204.14,12.19386218]
[1756824757830,0.06,204.16,204.15,12.87386218]
[1756824758128,39.88,204.16,204.15,12.87386218]
[1756824758809,39.88,204.16,204.15,17.77222122]
[1756824759006,0.06,204.16,204.15,31.65213837]
[1756824759207,0.06,204.16,204.15,31.79429994]
[1756824759427,1e-08,204.16,204.15,36.21849979]
[1756824761032,0.06,204.21,204.2,14.02207872]
[1756824761218,0.06,204.21,204.2,26.2159409]
[1756824761414,0.06,204.21,204.2,26.8759409]
[1756824761723,38.76,204.25,204.24,12.33602375]
[1756824761902,38.76,204.25,204.24,12.99602375]
[1756824762102,38.76,204.25,204.24,26.8759409]
[1756824762103,0.06,204.25,204.24,26.8759409]
[1756824762513,0.06,204.25,204.24,26.0]
[1756824762714,0.06,204.25,204.2,26.0]
[1756824762935,0.06,204.25,204.24,12.19386218]
[1756824763131,0.06,204.25,204.22,0.66]
[1756824763315,0.06,204.25,204.2,26.0]
[1756824763516,0.06,204.21,204.2,26.80216157]
[1756824763730,39.86,204.21,204.2,43.89318339]
[1756824764231,39.86,204.21,204.2,38.99602375]
[1756824764739,39.86,204.21,204.2,43.89318339]
[1756824764919,39.86,204.21,204.2,38.99602375]
[1756824765234,39.86,204.21,204.2,43.89318339]
[1756824765611,0.06,204.25,204.24,26.0]
[1756824765808,0.06,204.25,204.24,38.33602375]
[1756824766137,0.06,204.25,204.24,119.03602375]
[1756824766646,0.06,204.25,204.24,132.9159409]
[1756824767014,0.06,204.25,204.24,137.81214144]
[1756824767728,1e-08,204.26,204.25,14.02207872]
[1756824768036,0.06,204.28,204.27,40.02207872]
[1756824768235,0.06,204.28,204.27,52.2159409]
[1756824768432,0.06,204.28,204.27,52.8759409]
[1756824769015,0.06,204.28,204.27,57.77142237]
[1756824769936,0.06,204.29,204.28,14.02207872]
[1756824770118,0.06,204.29,204.28,26.8759409]
[1756824770843,0.06,204.29,204.28,25.93161776]
[1756824771021,0.06,204.29,204.28,26.59161776]
[1756824771224,0.06,204.29,204.28,31.48685958]
[1756824771417,0.06,204.29,204.28,31.77118272]
[1756824772340,0.06,204.29,204.28,19.43515897]
[1756824772549,0.06,204.29,204.28,18.77515897]
[1756824772843,0.06,204.29,204.28,30.96902115]
[1756824773042,0.06,204.29,204.28,38.19386218]
[1756824773216,0.06,204.29,204.28,38.33602375]
[1756824774139,0.06,204.29,204.28,43.23126557]
[1756824774347,0.06,204.29,204.28,38.33602375]
[1756824774520,0.06,204.29,204.28,43.23126557]
[1756824774920,0.06,204.29,204.28,38.33602375]
[1756824775527,0.06,204.29,204.28,43.23126557]
[1756824775737,0.06,204.29,204.24,13.59559401]
[1756824775939,0.72,204.28,204.19,13.59559401]
[1756824776136,0.72,204.27,204.24,12.19386218]
[1756824776334,0.72,204.26,204.24,12.19386218]
[1756824776654,0.72,204.26,204.25,12.19386218]
[1756824776830,40.5,204.26,204.25,12.19386218]
[1756824777031,40.5,204.26,204.22,26.0]
[1756824777229,40.5,204.26,204.25,12.19386218]
[1756824777545,0.06,204.29,204.25,12.19386218]
[1756824777744,39.84,204.29,204.28,12.19386218]
[1756824777958,0.06,204.29,204.28,12.33602375]
[1756824778932,0.06,204.29,204.28,12.99602375]
[1756824779132,0.06,204.29,204.28,31.77118272]
[1756824779350,0.06,204.29,204.28,31.11118272]
[1756824779731,0.06,204.29,204.28,18.91732054]
[1756824779926,0.06,204.29,204.28,31.11118272]
[1756824780347,0.06,204.29,204.28,12.19386218]
[1756824780757,39.84,204.29,204.28,12.19386218]
[1756824781252,0.06,204.29,204.28,12.33602375]
[1756824781450,0.06,204.29,204.28,31.77118272]
[1756824782137,0.06,204.29,204.28,111.81118272]
[1756824782534,0.06,204.3,204.29,14.02207872]
[1756824782737,0.06,204.3,204.29,106.9159409]
[1756824782926,0.06,204.32,204.29,106.9159409]
[1756824782927,0.06,204.32,204.31,40.02207872]
[1756824783255,0.06,204.34,204.33,18.91612266]
[1756824783433,0.06,204.51,204.36,39.59559401]
[1756824783633,0.06,204.51,204.44,52.2159409]
[1756824783837,0.06,204.51,204.44,52.8759409]
[1756824785256,0.06,204.51,204.44,40.02207872]
[1756824785552,0.92,204.5,204.44,57.10735158]
[1756824786155,0.92,204.5,204.44,44.9134894]
[1756824786446,0.92,204.5,204.44,57.10735158]
[1756824786650,0.92,204.5,204.44,52.2159409]
[1756824787254,5.81008598,204.5,204.44,0.14216157]
[1756824787439,0.72,204.48,204.44,12.33602375]
[1756824787637,0.92,204.45,204.38,19.14844066]
[1756824787844,0.2,204.45,204.44,12.19386218]
[1756824788362,0.92,204.45,204.38,18.48844066]
[1756824788540,0.92,204.45,204.41,26.0]
[1756824788863,0.2,204.45,204.34,4.89380444]
[1756824789154,0.72,204.44,204.42,12.19386218]
[1756824789453,0.66,204.43,204.42,12.19386218]
[1756824789651,0.2,204.45,204.42,12.19386218]
[1756824789652,0.2,204.45,204.44,26.0]
[1756824789960,0.2,204.45,204.44,52.2159409]
[1756824790157,0.86,204.45,204.34,14.7019186]
[1756824790355,0.66,204.44,204.4,12.19386218]
[1756824790564,0.66,204.43,204.39,12.19386218]
[1756824790731,0.66,204.42,204.36,0.81216157]
[1756824791061,0.66,204.42,204.39,12.19386218]
[1756824791244,0.66,204.41,204.34,19.59558479]
[1756824791553,0.66,204.44,204.4,12.19386218]
[1756824791767,40.58,204.44,204.43,12.19386218]
[1756824791948,40.58,204.44,204.42,12.19386218]
[1756824792155,39.92,204.44,204.42,12.19386218]
[1756824792349,40.58,204.44,204.42,12.19386218]
[1756824793243,40.58,204.44,204.34,17.12817729]
[1756824793244,0.66,204.43,204.31,4.36995896]
[1756824793563,12.19386218,204.38,204.32,12.19386218]
[1756824793856,0.66,204.37,204.32,12.19386218]
[1756824794048,40.64,204.36,204.33,12.19386218]
[1756824794241,40.62,204.35,204.33,12.19386218]
[1756824794432,40.62,204.35,204.28,0.67]
[1756824794433,40.62,204.35,204.29,4.89496209]
[1756824794765,39.96,204.35,204.33,12.19386218]
[1756824794963,40.62,204.35,204.31,26.0]
[1756824795266,0.66,204.34,204.29,26.0]
[1756824795560,0.66,204.33,204.31,12.19386218]
[1756824795860,39.96,204.35,204.32,12.19386218]
[1756824796159,39.96,204.35,204.33,12.19386218]
[1756824796349,39.96,204.35,204.31,26.0]
[1756824796350,39.96,204.35,204.32,12.19386218]
[1756824796663,40.62,204.35,204.33,12.19386218]
[1756824797164,39.96,204.35,204.34,12.19386218]
[1756824797762,39.96,204.35,204.3,31.70687952]
[1756824797967,39.96,204.35,204.34,12.19386218]
[1756824798649,57.70756362,204.35,204.27,5.56533017]
[1756824798853,0.66,204.34,204.26,0.03]
[1756824799060,0.66,204.34,204.29,12.19386218]
[1756824799262,39.96,204.35,204.3,12.19386218]
[1756824799464,0.66,204.33,204.3,12.19386218]
[1756824799657,0.66,204.32,204.29,38.19386218]
[1756824800049,40.62,204.35,204.31,12.19386218]
[1756824800251,40.62,204.35,204.32,0.03]
[1756824800549,0.66,204.34,204.32,0.03]
[1756824800944,0.66,204.33,204.32,0.03]
[1756824801541,0.06,204.35,204.32,8.09197948]
[1756824801746,0.06,204.35,204.34,8.06197948]
[1756824801943,0.06,204.35,204.32,0.03]
[1756824802169,0.06,204.35,204.33,8.06197948]
[1756824802365,0.06,204.35,204.34,8.06197948]
[1756824803346,0.06,204.35,204.33,34.06197948]
[1756824803862,0.72,204.35,204.33,34.06197948]
[1756824804075,0.06,204.35,204.34,8.06197948]
[1756824804654,39.88,204.35,204.34,8.06197948]
[1756824805458,39.88,204.35,204.34,88.16197948]
[1756824805844,0.06,204.35,204.34,88.16197948]
[1756824806044,0.06,204.35,204.34,88.83197948]
[1756824806344,0.06,204.35,204.34,88.16197948]
[1756824807070,0.06,204.35,204.34,93.86794549]
[1756824807566,0.06,204.35,204.34,119.86794549]
[1756824808371,0.06,204.35,204.34,106.1]
[1756824808676,0.06,204.35,204.34,114.16197948]
[1756824809468,0.06,204.35,204.34,119.05578392]
[1756824809872,0.06,204.35,204.34,39.76794549]
[1756824810969,0.06,204.35,204.34,53.64786264]
[1756824811178,0.06,204.38,204.37,26.0]
[1756824811399,0.06,204.52,204.42,13.59559401]
[1756824811400,0.86,204.5,204.42,13.59559401]
[1756824811689,0.86,204.5,204.41,26.0]
[1756824811690,0.2,204.5,204.48,26.0]
[1756824811863,0.2,204.5,204.49,8.20414105]
[1756824812063,0.2,204.5,204.49,22.7540582]
[1756824812781,0.2,204.5,204.49,27.64427288]
[1756824813264,0.06,204.51,204.5,14.02207872]
[1756824813588,0.06,204.53,204.52,40.02207872]
[1756824813767,0.06,204.53,204.52,48.0840582]
[1756824813966,0.06,204.53,204.52,48.7540582]
[1756824814276,0.06,204.53,204.52,34.20414105]
[1756824814884,0.06,204.53,204.52,39.0936384]
[1756824815069,0.06,204.53,204.52,39.7636384]
[1756824815478,0.06,204.53,204.52,34.20414105]
[1756824815661,0.72,204.53,204.52,34.06197948]
[1756824815861,0.72,204.53,204.52,26.0]
[1756824816084,0.72,204.53,204.52,8.06197948]
[1756824816667,0.06,204.53,204.48,26.0]
[1756824816988,0.72,204.53,204.52,8.06197948]
[1756824817296,0.66,204.52,204.45,13.59559401]
[1756824817476,0.66,204.52,204.45,14.26559401]
[1756824817675,0.66,204.52,204.51,8.06197948]
[1756824818282,0.66,204.52,204.5,8.06197948]
[1756824818464,39.8,204.53,204.51,8.06197948]
[1756824818669,40.46,204.53,204.51,8.06197948]
[1756824818865,39.8,204.53,204.51,8.06197948]
[1756824819170,39.8,204.53,204.48,26.0]
[1756824819171,0.72,204.52,204.5,8.06197948]
[1756824819368,39.8,204.53,204.51,8.06197948]
[1756824819595,40.52,204.53,204.51,8.06197948]
[1756824819882,40.52,204.53,204.39,0.69]
[1756824819883,0.72,204.52,204.39,0.69]
[1756824820092,8.06197948,204.47,204.41,8.06197948]
[1756824820266,40.46,204.46,204.41,8.06197948]
[1756824820464,0.72,204.45,204.4,8.06197948]
[1756824820665,0.72,204.44,204.4,8.06197948]
[1756824821059,0.72,204.44,204.39,34.06197948]
[1756824821364,8.06197948,204.41,204.31,0.69]
[1756824821683,39.8,204.4,204.31,26.69]
[1756824821888,0.72,204.4,204.35,8.06197948]
[1756824822069,0.72,204.43,204.39,8.06197948]
[1756824822268,40.54,204.42,204.36,0.69]
[1756824822472,39.8,204.41,204.35,26.0]
[1756824822792,5.61069896,204.47,204.4,8.06197948]
[1756824822966,0.72,204.46,204.44,8.06197948]
[1756824823165,40.54,204.46,204.44,8.06197948]
[1756824823364,0.72,204.45,204.41,0.14216157]
[1756824823563,0.72,204.45,204.42,8.06197948]
[1756824823869,0.72,204.44,204.41,34.06197948]
[1756824824566,44.71097301,204.46,204.42,8.06197948]
[1756824824888,0.72,204.45,204.42,8.06197948]
[1756824825388,0.72,204.45,204.43,8.06197948]
[1756824825584,39.84,204.44,204.43,8.06197948]
[1756824826498,38.28361131,204.53,204.43,88.16197948]
[1756824826708,0.72,204.48,204.43,80.1]
[1756824826991,0.72,204.47,204.43,88.16197948]
[1756824827194,0.72,204.47,204.44,8.06197948]
[1756824827383,0.72,204.47,204.43,80.1]
[1756824827384,39.8,204.46,204.45,8.06197948]
[1756824827586,39.8,204.46,204.45,88.16197948]
[1756824828276,40.52,204.46,204.45,80.1]
[1756824829569,53.47291169,204.46,204.38,80.79]
[1756824829805,0.72,204.45,204.4,8.06197948]
[1756824829978,0.72,204.44,204.4,8.06197948]
[1756824830181,0.72,204.43,204.38,106.1]
[1756824830488,8.06197948,204.44,204.34,14.28559401]
[1756824830489,0.72,204.42,204.34,0.69]
[1756824830694,56.91826273,204.46,204.39,8.06197948]
[1756824830695,39.8,204.41,204.39,8.06197948]
[1756824830870,39.8,204.4,204.39,8.06197948]
[1756824831196,39.8,204.4,204.38,8.06197948]
[1756824831385,39.8,204.4,204.37,8.06197948]
[1756824831699,8.78197948,204.45,204.39,8.06197948]
[1756824831992,0.72,204.45,204.42,8.06197948]
[1756824832376,39.82,204.44,204.42,8.06197948]
[1756824832574,0.72,204.49,204.43,8.06197948]
[1756824832789,39.82,204.48,204.45,8.06197948]
[1756824833095,40.54,204.48,204.45,8.06197948]
[1756824833305,0.72,204.47,204.45,8.06197948]
[1756824833505,0.72,204.46,204.32,0.03]
[1756824833704,8.06197948,204.39,204.32,8.09197948]
[1756824834002,13.87991715,204.41,204.32,0.03]
[1756824834003,49.14197948,204.38,204.32,0.03]
[1756824834311,8.06197948,204.35,204.32,0.03]
[1756824834529,8.06197948,204.34,204.32,0.03]
[1756824834831,48.42197948,204.33,204.32,0.03]
[1756824835000,49.14197948,204.33,204.32,0.03]
[1756824835205,8.06197948,204.34,204.32,0.03]
[1756824835406,8.06197948,204.35,204.32,0.03]
[1756824835620,40.34,204.34,204.32,0.03]
[1756824835803,40.34,204.33,204.32,0.03]
[1756824836420,4.89321313,204.37,204.32,0.03]
[1756824836609,40.32,204.36,204.32,0.03]
[1756824837017,0.72,204.42,204.35,8.06197948]
[1756824837317,49.10197948,204.41,204.35,8.06197948]
[1756824837523,4.8923679,204.4,204.33,26.0]
[1756824837733,4.8923679,204.4,204.35,8.06197948]
[1756824838024,0.72,204.39,204.35,8.06197948]
[1756824838527,4.8923679,204.4,204.32,0.03]
[1756824838528,13.67339016,204.44,204.38,8.06197948]
[1756824838713,48.36197948,204.43,204.37,8.06197948]
[1756824839117,40.3,204.43,204.38,8.06197948]
[1756824839433,0.72,204.42,204.38,8.06197948]
[1756824839643,4.89212856,204.41,204.38,8.06197948]
[1756824839843,5.61190382,204.42,204.38,8.06197948]
[1756824840008,0.72,204.41,204.36,8.06197948]
[1756824840214,0.72,204.4,204.35,8.06197948]
[1756824840404,0.72,204.42,204.36,8.06197948]
[1756824840609,40.28,204.41,204.39,8.06197948]
[1756824841633,40.28,204.4,204.39,8.06197948]
[1756824842338,40.28,204.4,204.39,80.1]
[1756824842339,41.0,204.4,204.39,80.1]
[1756824842823,49.06197948,204.4,204.39,80.1]
[1756824843214,40.28,204.4,204.39,80.1]
[1756824843835,45.1723679,204.4,204.39,80.1]
[1756824844039,4.8923679,204.4,204.39,80.1]
[1756824844215,45.1523679,204.4,204.39,80.1]
[1756824844732,5.61045383,204.48,204.39,88.85197948]
[1756824844936,40.26,204.47,204.4,0.69]
[1756824845234,40.26,204.47,204.44,8.06197948]
[1756824845430,40.98,204.47,204.43,8.06197948]
[1756824845618,40.26,204.47,204.43,8.06197948]
[1756824845826,40.98,204.47,204.43,8.06197948]
[1756824846012,4.89093221,204.46,204.43,8.06197948]
[1756824846214,32.34,204.5,204.45,8.06197948]
[1756824846416,45.85021468,204.49,204.46,8.06197948]
[1756824846617,45.85021468,204.49,204.45,8.06197948]
[1756824846828,40.22,204.48,204.45,8.06197948]
[1756824847029,40.94,204.48,204.45,8.06197948]
[1756824847233,40.22,204.48,204.43,8.06197948]
[1756824847440,0.72,204.47,204.43,8.06197948]
[1756824847620,0.72,204.46,204.42,8.06197948]
[1756824847941,0.72,204.46,204.43,8.06197948]
[1756824848144,4.89117143,204.45,204.4,80.1]
[1756824848328,40.92,204.44,204.41,8.06197948]
[1756824848529,40.2,204.44,204.41,8.06197948]
[1756824849518,0.72,204.47,204.42,8.06197948]
[1756824849751,32.34,204.5,204.46,8.06197948]
[1756824849929,32.34,204.5,204.49,8.06197948]
[1756824850242,72.5,204.5,204.49,8.06197948]
[1756824850552,77.39000964,204.5,204.44,0.71]
[1756824850757,77.39000964,204.5,204.48,8.06197948]
[1756824850942,72.5,204.5,204.48,8.06197948]
[1756824851249,72.5,204.5,204.49,8.06197948]
[1756824851424,72.5,204.5,204.48,8.06197948]
[1756824851625,77.38997555,204.5,204.48,8.06197948]
[1756824851826,77.38997555,204.5,204.44,0.71]
[1756824851827,78.06997555,204.5,204.43,0.14216157]
[1756824852038,77.38997555,204.5,204.46,8.06197948]
[1756824852237,78.06997555,204.5,204.46,8.06197948]
[1756824852445,78.06997555,204.5,204.47,8.06197948]
[1756824852622,77.38997555,204.5,204.47,8.06197948]
[1756824853136,0.68,204.49,204.41,0.14216157]
[1756824853341,0.68,204.49,204.44,8.06197948]
[1756824853538,0.68,204.48,204.44,8.06197948]
[1756824853844,32.34,204.5,204.46,8.06197948]
[1756824854035,40.12,204.49,204.48,8.06197948]
[1756824854438,40.12,204.49,204.47,8.06197948]
[1756824854639,32.34,204.5,204.47,8.06197948]
[1756824854836,32.34,204.5,204.49,8.06197948]
[1756824855127,72.44,204.5,204.49,8.77197948]
[1756824855324,0.06,204.52,204.49,8.77197948]
[1756824855526,0.06,204.52,204.51,8.06197948]
[1756824855752,40.16,204.52,204.51,8.06197948]
[1756824855926,45.72949735,204.52,204.46,26.0]
[1756824856121,45.72949735,204.52,204.48,8.06197948]
[1756824856325,45.04949735,204.52,204.46,26.0]
[1756824856546,45.04949735,204.52,204.45,0.71]
[1756824856852,0.68,204.51,204.47,8.06197948]
[1756824857037,0.68,204.51,204.48,8.06197948]
[1756824857236,13.59559401,204.48,204.36,14.70408038]
[1756824857552,8.06197948,204.44,204.38,8.06197948]
[1756824857738,45.33164995,204.43,204.4,8.06197948]
[1756824857939,4.89093221,204.46,204.42,8.06197948]
[1756824858137,40.44,204.45,204.42,8.06197948]
[1756824858651,41.12,204.45,204.41,8.06197948]
[1756824858833,41.12,204.45,204.4,8.06197948]
[1756824859034,4.8906995,204.47,204.42,8.06197948]
[1756824859228,40.42,204.46,204.42,8.06197948]
[1756824859457,0.68,204.45,204.39,0.03]
[1756824859759,4.89141068,204.44,204.39,8.09197948]
[1756824859933,5.57141068,204.44,204.39,8.09197948]
[1756824860129,5.57141068,204.44,204.39,0.03]
[1756824860331,8.74197948,204.43,204.39,0.03]
[1756824860535,40.4,204.42,204.39,0.03]
[1756824860941,41.08,204.42,204.39,0.03]
[1756824861155,0.68,204.41,204.39,0.03]
[1756824861338,40.4,204.42,204.39,0.03]
[1756824861652,40.38,204.41,204.4,8.06197948]
[1756824861825,40.38,204.41,204.39,8.09197948]
[1756824862027,45.95214739,204.41,204.39,0.03]
[1756824862256,45.27214739,204.41,204.39,0.03]
[1756824862957,40.38,204.41,204.39,8.80197948]
[1756824863339,4.89080361,204.47,204.4,8.77197948]
[1756824863552,40.36,204.46,204.42,12.15270277]
[1756824863853,12.15270277,204.44,204.39,0.03]
[1756824864052,40.36,204.43,204.39,12.18270277]
[1756824864348,0.68,204.42,204.39,0.03]
[1756824864539,12.83270277,204.42,204.39,0.03]
[1756824864865,0.68,204.41,204.39,0.03]
[1756824865057,40.34,204.4,204.39,0.03]
[1756824865268,53.17270277,204.4,204.39,0.03]
[1756824865803,84.17590758,204.4,204.36,0.03]
[1756824866069,26.03261992,204.37,204.36,0.03]
[1756824866360,66.37261992,204.37,204.36,0.03]
[1756824866572,67.05261992,204.37,204.36,0.03]
[1756824867646,26.03261992,204.35,204.34,0.03]
[1756824867847,18.77348211,204.35,204.34,0.03]
[1756824868057,31.60618488,204.35,204.34,0.03]
[1756824868358,71.94618488,204.35,204.34,0.03]
[1756824868562,59.79348211,204.35,204.34,0.03]
[1756824868862,71.94618488,204.35,204.34,0.03]
[1756824869164,71.92618488,204.35,204.34,0.03]
[1756824869976,59.77348211,204.35,204.34,0.03]
[1756824870180,12.83270277,204.35,204.34,0.03]
[1756824870356,53.11270277,204.35,204.34,0.03]
[1756824871348,58.00626773,204.35,204.34,0.03]
[1756824872081,53.11270277,204.35,204.34,0.03]
[1756824872456,45.85356496,204.35,204.34,0.03]
[1756824872661,58.00626773,204.35,204.34,0.03]
[1756824872977,72.02834645,204.35,204.34,0.03]
[1756824873569,71.84618488,204.35,204.34,0.03]
[1756824873978,5.57356496,204.35,204.34,0.03]
[1756824874183,57.96626773,204.35,204.34,0.03]
[1756824874979,0.28432314,204.38,204.34,0.03]
[1756824874980,0.68,204.41,204.34,12.89270277]
[1756824875292,40.22,204.4,204.37,12.15270277]
[1756824875672,4.89188924,204.42,204.37,12.15270277]
[1756824875867,4.89188924,204.42,204.38,12.15270277]
[1756824876075,40.22,204.41,204.38,12.86270277]
[1756824876279,26.0,204.39,204.38,0.71]
[1756824876475,66.6,204.39,204.34,0.03]
[1756824876683,12.15270277,204.35,204.34,0.03]
[1756824876980,40.68,204.35,204.34,0.03]
[1756824877181,12.15270277,204.35,204.34,0.03]
[1756824877483,40.66,204.35,204.34,0.03]
[1756824878286,0.06,204.36,204.34,0.03]
[1756824878480,40.66,204.35,204.34,0.03]
[1756824880681,45.55356496,204.35,204.34,0.03]
[1756824881491,40.66,204.35,204.34,0.03]
[1756824881793,45.55356496,204.35,204.34,0.03]
[1756824882091,0.06,204.36,204.34,0.03]
[1756824882393,40.58,204.35,204.34,0.03]
[1756824883186,45.47356496,204.35,204.34,0.03]
[1756824883491,57.62626773,204.35,204.34,0.03]
[1756824883679,71.94186174,204.35,204.32,0.03]
[1756824883884,12.15270277,204.33,204.32,0.03]
[1756824884098,92.59261992,204.33,204.32,0.03]
[1756824884293,93.31261992,204.33,204.32,0.03]
[1756824884470,98.20666386,204.33,204.32,0.03]
[1756824886287,13.87991715,204.32,204.31,0.03]
[1756824886473,18.77420062,204.32,204.31,0.03]
[1756824886799,31.64690339,204.32,204.31,0.03]
[1756824888599,31.64690339,204.32,204.31,1e-08]
[1756824888981,72.12690339,204.32,204.31,1e-08]
[1756824889388,72.10690339,204.32,204.31,1e-08]
[1756824890803,4.89428347,204.32,204.31,1e-08]
[1756824891095,57.46698624,204.32,204.31,1e-08]
[1756824891492,46.03428347,204.32,204.31,1e-08]
[1756824891691,58.18698624,204.32,204.31,1e-08]
[1756824892506,72.06690339,204.32,204.31,1e-08]
[1756824892999,57.44698624,204.32,204.31,1e-08]
[1756824894188,45.29428347,204.32,204.31,1e-08]
[1756824894389,43.04698624,204.32,204.31,1e-08]
[1756824894695,84.12698624,204.32,204.31,1e-08]
[1756824896001,45.25428347,204.32,204.31,1e-08]
[1756824896304,45.21428347,204.32,204.31,1e-08]
[1756824896797,57.36698624,204.32,204.31,1e-08]
[1756824897100,58.08698624,204.32,204.31,1e-08]
[1756824897285,17.04698624,204.32,204.31,1e-08]
[1756824897484,4.89428347,204.32,204.31,1e-08]
[1756824897792,17.04698624,204.32,204.31,1e-08]
[1756824898001,57.34698624,204.32,204.31,1e-08]
[1756824898898,45.19428347,204.32,204.31,1e-08]
[1756824899079,57.34698624,204.32,204.31,1e-08]
[1756824899275,43.04698624,204.32,204.31,1e-08]
[1756824899486,26.0,204.35,204.31,1e-08]
[1756824899695,40.28,204.34,204.31,0.68000001]
[1756824899894,40.28,204.34,204.31,1e-08]
[1756824900094,52.43270277,204.34,204.31,1e-08]
[1756824900323,12.15270277,204.33,204.31,1e-08]
[1756824900491,40.28,204.32,204.31,1e-08]
[1756824900690,52.43270277,204.32,204.31,1e-08]
[1756824901204,58.04698624,204.32,204.31,1e-08]
[1756824901797,57.32698624,204.32,204.31,1e-08]
[1756824902493,58.04698624,204.32,204.31,1e-08]
[1756824902711,57.32698624,204.32,204.31,1e-08]
[1756824902911,45.17428347,204.32,204.31,1e-08]
[1756824903121,57.32698624,204.32,204.31,1e-08]
[1756824903295,58.04698624,204.32,204.31,1e-08]
[1756824904215,40.2,204.32,204.31,1e-08]
[1756824905096,57.64690339,204.32,204.31,1e-08]
[1756824905293,98.18690339,204.32,204.31,1e-08]
[1756824906515,72.32906496,204.32,204.31,1e-08]
[1756824907616,72.18690339,204.32,204.31,1e-08]
[1756824907815,97.42690339,204.32,204.31,1e-08]
[1756824907997,30.89428347,204.32,204.31,1e-08]
[1756824908506,57.52698624,204.32,204.31,1e-08]
[1756824908704,45.37428347,204.32,204.31,1e-08]
[1756824910012,12.15270277,204.34,204.31,0.72000001]
[1756824910210,26.28432314,204.35,204.31,0.72000001]
[1756824910403,45.33380444,204.34,204.31,1e-08]
[1756824910885,4.89380444,204.34,204.31,1e-08]